[Event "Israel-ch Semi-final 2022"]
[Site "Ramat Gan"]
[Date "2022.06.27"]
[Round "8.9"]
[White "Zemach, Nadav"]
[Black "Sivan, Yaacov"]
[Result "1/2-1/2"]
[ECO "A56"]
[WhiteElo "2238"]
[BlackElo "2306"]
[Annotator "TA"]
[PlyCount "141"]
[EventDate "2022.05.09"]
[EventType "swiss"]
[EventCountry "ISR"]
[SourceTitle "playchess.com"]
[Source "ChessBase"]
[SourceQuality "1"]
[TimeControl "40/5400+30:1800+30"]

{[%evp 19,141,56,60,60,59,58,58,64,57,41,75,72,92,44,49,42,54,45,64,62,91,91,86,66,78,19,38,36,55,34,16,-48,117,117,92,80,98,95,184,-91,-78,-71,-72,-78,-70,-66,-54,-49,-57,-38,-49,-276,-144,-152,-20,-16,0,-154,0,-25,-17,-26,-48,-75,-37,-45,-29,-70,-70,-70,-70,-70,-77,-77,-77,-77,-77,-77,-77,-92,-29,-80,-22,-24,0,0,0,0,0,0,25,0,0,0,0,0,0,0,41,6,8,12,47,18,22,10,13,0,0,0,0,0,0,0,0,0,0,0,0,0,0,0,0,0]} 1. d4 {[%emt 0:00:01]} Nf6 {[%emt 0:06:58]} 2. c4 {[%emt 0:00:06]} c5 {[%emt 0:00:04]} 3. d5 {[%emt 0:00:02]} e5 {[%emt 0:00:05]} 4. Nc3 {[%emt 0:00:04]} d6 {[%emt 0:00:05]} 5. e4 {[%emt 0:00:02]} Be7 {[%emt 0:00:06]} 6. g3 {[%emt 0:00:04]} O-O {[%emt 0:00:18]} 7. Bg2 {[%emt 0:00:03]} Na6 {[%emt 0:00:11]} 8. Nge2 {[%emt 0:00:04]} Nc7 {[%emt 0:00:07]} 9. O-O {[%emt 0:00:04]} a6 {[%emt 0:00:41]} 10. a4 {[%emt 0:00:04]} b6 {[%emt 0:00:17]} 11. Qd3 {[%emt 0:01:29] A56: Czech Benoni.} Rb8 {[%emt 0:00:26]} 12. f4 {[%emt 0:00:21]} Nd7 {[%emt 0:00:31]} 13. Be3 {[%emt 0:00:16] White is slightly better.} Bf6 {[%emt 0:02:24]} 14. Kh1 {[%emt 0:00:08]} Re8 {[%emt 0:03:16]} 15. f5 {[%emt 0:00:16] [#]} Nf8 $146 {[%emt 0:05:04]} ({Predecessor:} 15... Bg5 16. Rf3 Nf8 17. g4 Bxe3 18. Qxe3 f6 19. h4 h6 20. Rg3 Nh7 21. Ng1 Kf7 {1-0 (52) Sharova,A (2146)-Savushkina,E (2155) Minsk 2007}) 16. Ng1 {[%emt 0:03:54] White is more active.} (16. b3 $16) 16... b5 $14 {[%emt 0:21:38]} 17. b3 {[%emt 0:00:25]} bxc4 {[%emt 0:04:16]} 18. bxc4 {[%emt 0:00:08]} Bd7 {[%emt 0:00:27]} 19. Nf3 {[%emt 0:03:27]} Rb3 {[%emt 0:05:18]} 20. g4 {[%emt 0:03:29]} h6 {[%emt 0:01:45] Inhibits g5.} 21. Rg1 {[%emt 0:07:56]} Nh7 {[%emt 0:03:24]} 22. Bf1 {[%emt 0:01:16]} (22. Rgb1 $16 Rxb1+ 23. Qxb1 (23. Rxb1 a5 $14)) 22... Qe7 $11 {[%emt 0:09:24]} 23. Bf2 {[%emt 0:09:14]} Bg5 {[%emt 0:07:57]} 24. h4 {[%emt 0:07:22]} Bf4 {[%emt 0:00:45]} 25. Be3 {[%emt 0:10:29]} (25. Be1 $11) 25... g5 $2 {[%emt 0:04:40]} (25... Nf6 $1 $15 26. Rc1 Na8) 26. fxg6 $1 $16 {[%emt 0:08:09]} fxg6 {[%emt 0:00:08]} 27. Bxf4 {[%emt 0:00:11]} exf4 {[%emt 0:00:11]} 28. e5 {[%emt 0:08:34]} dxe5 {[%emt 0:04:11]} (28... Qg7 $16) 29. d6 $2 {[%emt 0:01:48] [#]} ({White must play} 29. Qxg6+ $18 Qg7 30. Qc2) 29... Rxc3 $1 $17 {[%emt 0:04:12]} 30. dxe7 {[%emt 0:14:38]} Rxd3 {[%emt 0:00:07]} 31. Bxd3 {[%emt 0:00:03]} Bc6 $1 {[%emt 0:00:11]} 32. Rgf1 {[%emt 0:00:52]} e4 {[%emt 0:05:52][%mdl 1024] Black has compensation.} 33. Ne5 {[%emt 0:00:38][%csl LRc6,LRf4,LRg6]} Ba8 {[%emt 0:00:12]} 34. Bc2 {[%emt 0:07:04]} g5 {[%emt 0:01:37]} 35. Ng6 $2 {[%emt 0:00:11]} ({White should play} 35. Rad1 $15 Rxe7 36. Ng6 (36. Rd8+ Kg7 $17)) 35... Ne6 {[%emt 0:01:43]} (35... Kg7 $19 36. h5 Nf6) 36. a5 {[%emt 0:01:25] Hoping for Ba4.} Bc6 {[%emt 0:06:31]} (36... e3+ $17 37. Kg1 Nd4) 37. Ne5 $11 {[%emt 0:00:02]} Ba8 {[%emt 0:00:44]} (37... Nd4 $11 38. Nxc6 Nxc2) 38. Ng6 $17 {[%emt 0:00:02] Strongly threatening Ba4.} Bc6 {[%emt 0:01:41]} (38... e3+ $17 39. Kg1 Bc6) 39. Ne5 $11 {[%emt 0:00:03]} Nd4 {[%emt 0:00:12]} 40. Nxc6 {[%emt 0:03:08]} Nxc2 {[%emt 0:00:05]} 41. Rad1 {[%emt 0:40:22] [#]} e3 $1 {[%emt 0:31:24]} 42. Rd8 {[%emt 0:02:19]} Nf6 {[%emt 0:00:00]} 43. hxg5 {[%emt 0:00:00] Dancing on a razor blade.} hxg5 {[%emt 0:00:00]} 44. Ne5 {[%emt 0:00:00]} e2 {[%emt 0:00:00]} 45. Rc1 {[%emt 0:00:00]} ({Don't blunder} 45. Rxe8+ $2 Nxe8 46. Rg1 e1=Q $19) 45... e1=Q+ {[%emt 0:00:00]} 46. Rxe1 {[%emt 0:00:00]} Nxe1 {[%emt 0:00:00]} 47. Nd7 {[%emt 0:00:00]} Kf7 {[%emt 0:00:00]} (47... Nxg4 $2 48. Rxe8+ Kf7 49. Ra8 Kxe7 50. Nxc5 $18) 48. Nxf6 {[%emt 0:00:00]} Rxe7 $17 {[%emt 0:00:00][%mdl 4096] Endgame KRN-KRN} 49. Nd5 {[%emt 0:00:00]} Rb7 {[%emt 0:00:00]} (49... Re6 $17 {And now ...Nf3 would win.} 50. Rd7+ Kg6) 50. Ra8 {[%emt 0:00:00] [#]} (50. Nb6 $11) 50... Rb1 {[%emt 0:00:00]} (50... Nf3 $1 $17 {Threatens to win with ...Rb2.} 51. Rxa6 Rb2 52. Ra7+ Ke6) 51. Rxa6 $11 {[%emt 0:00:00]} f3 {[%emt 0:00:00]} 52. Rf6+ {[%emt 0:00:00]} Kg7 {[%emt 0:00:00]} 53. Kh2 {[%emt 0:00:00]} Rb2+ {[%emt 0:00:00]} 54. Kg1 {[%emt 0:00:00]} Rc2 {[%emt 0:01:55]} 55. Kf1 {[%emt 0:00:00]} Rc1 {[%emt 0:00:52][%cal Re1d3]} 56. Kf2 {[%emt 0:00:00]} Nd3+ {[%emt 0:00:29]} 57. Kxf3 {[%emt 0:00:00] aiming for Re6.} (57. Ke3 {feels hotter.} f2 58. Kxd3 f1=Q+ 59. Rxf1 Rxf1 60. a6) 57... Ne5+ {[%emt 0:00:42]} 58. Kg2 {[%emt 0:00:00]} Nxg4 {[%emt 0:01:22]} 59. Rb6 {[%emt 0:00:00]} (59. Re6 $5 {[%cal Ra5a6]}) 59... Ne5 {[%emt 0:02:02]} 60. a6 {[%emt 0:00:00]} Nxc4 {[%emt 0:01:15]} 61. Rb7+ {[%emt 0:00:00]} Kh6 {[%emt 0:00:19] The position is equal.} (61... Kg6 {looks sharper.} 62. a7 Ra1 63. Nc3 Kf5) 62. Nc7 {[%emt 0:06:05]} (62. a7 {is interesting.} Ra1 63. Nc3 Kh5 64. Nb5) 62... Ra1 {[%emt 0:00:20]} 63. Rb5 {[%emt 0:00:48]} (63. a7 {with more complications.} Nd6 64. Rb6 Ra2+ 65. Kf1) 63... Kh5 {[%emt 0:00:47]} 64. Rxc5 {[%emt 0:00:05]} Nb6 {[%emt 0:00:34]} 65. Rc6 {[%emt 0:00:49]} Nd7 {[%emt 0:00:34]} 66. Rd6 {[%emt 0:00:24]} Nb8 {[%emt 0:00:30]} 67. Rb6 {[%emt 0:00:12]} Ra2+ {[%emt 0:00:14]} 68. Kf1 {[%emt 0:00:05]} Ra1+ {[%emt 0:00:07]} 69. Ke2 {[%emt 0:00:33]} Ra2+ {[%emt 0:00:10]} 70. Ke3 {[%emt 0:00:04]} Ra3+ {[%emt 0:00:33]} 71. Kf2 {[%emt 0:01:13] Weighted Error Value: White=0.26 (precise) /Black=0.28 (precise)} 1/2-1/2

[Event "Israel-ch Semi-final 2022"]
[Site "Ramat Gan"]
[Date "2022.06.27"]
[Round "8.10"]
[White "Kinberg, Ofer"]
[Black "Flaum, Mark"]
[Result "1-0"]
[ECO "B49"]
[WhiteElo "1935"]
[BlackElo "1915"]
[Annotator "NA RC"]
[PlyCount "95"]
[EventDate "2022.05.09"]
[EventType "swiss"]
[EventCountry "ISR"]
[SourceTitle "playchess.com"]
[Source "ChessBase"]
[SourceQuality "1"]
[TimeControl "40/5400+30:1800+30"]

1. e4 {[%emt 0:09:34]} c5 {[%emt 0:00:05]} 2. Nf3 {[%emt 0:00:03]} e6 {[%emt 0:00:09]} 3. d4 {[%emt 0:00:15]} cxd4 {[%emt 0:00:05]} 4. Nxd4 {[%emt 0:00:01]} Nc6 {[%emt 0:00:40]} 5. Nc3 {[%emt 0:00:09]} Qc7 {[%emt 0:00:06]} 6. Be2 {[%emt 0:00:10]} a6 {[%emt 0:00:23]} 7. Be3 {[%emt 0:01:11]} b5 {[%emt 0:00:16]} 8. Nxc6 {[%emt 0:06:39]} dxc6 {[%emt 0:00:06]} 9. O-O {[%emt 0:01:19]} Bb7 {[%emt 0:00:41]} 10. Qe1 {[%emt 0:09:06]} Rd8 {[%emt 0:03:21]} 11. a4 {[%emt 0:10:26]} b4 {[%emt 0:07:30]} 12. Nb1 {[%emt 0:00:17]} Nf6 {[%emt 0:02:01]} 13. Nd2 {[%emt 0:00:49]} c5 {[%emt 0:03:57]} 14. f3 {[%emt 0:01:58]} Be7 {[%emt 0:08:45]} 15. Nc4 {[%emt 0:09:44]} O-O {[%emt 0:00:54]} 16. Qf2 {[%emt 0:00:30]} Nd7 {[%emt 0:13:03]} 17. Rfc1 {[%emt 0:04:34]} f5 {[%emt 0:16:50]} 18. exf5 {[%emt 0:04:35]} exf5 {[%emt 0:00:30]} 19. Qf1 {[%emt 0:11:40]} f4 {[%emt 0:11:40]} 20. Bf2 {[%emt 0:01:51]} Bf6 {[%emt 0:00:15]} 21. a5 {[%emt 0:06:27]} Ne5 {[%emt 0:03:12]} 22. c3 {[%emt 0:05:25]} bxc3 {[%emt 0:00:05]} 23. bxc3 {[%emt 0:05:52]} Qc6 {[%emt 0:03:31]} 24. Rab1 {[%emt 0:02:54]} Bc8 {[%emt 0:00:54]} 25. Rb6 {[%emt 0:00:45]} Qc7 {[%emt 0:06:39]} 26. Nxe5 {[%emt 0:00:07]} Bxe5 {[%emt 0:02:17]} 27. Bxa6 {[%emt 0:00:27]} Bf5 {[%emt 0:01:13]} 28. Qc4+ {[%emt 0:01:05]} Kh8 {[%emt 0:00:15]} 29. Qxc5 {[%emt 0:00:30]} Rfe8 {[%emt 0:01:09]} 30. Rc6 {[%emt 0:03:20]} Qb8 {[%emt 0:05:51]} 31. Qb6 {[%emt 0:00:20]} Rd2 {[%emt 0:02:12]} 32. Rc5 {[%emt 0:03:37]} Qd6 {[%emt 0:03:13]} 33. Qxd6 {[%emt 0:00:27]} Rxd6 {[%emt 0:00:06]} 34. Bb5 {[%emt 0:00:15]} Bd7 {[%emt 0:03:09]} 35. Re1 {[%emt 0:00:58]} Bxc3 {[%emt 0:01:12]} 36. Rxe8+ {[%emt 0:00:35]} Bxe8 {[%emt 0:00:03]} 37. Rc8 {[%emt 0:00:27]} Kg8 {[%emt 0:01:56]} 38. h3 {[%emt 0:00:33]} Rd1+ {[%emt 0:00:38]} 39. Kh2 {[%emt 0:00:24]} Bxa5 {[%emt 0:00:32]} 40. Bxe8 {[%emt 0:00:27]} Rd8 {[%emt 0:00:30]} 41. Rxd8 {[%emt 0:01:52]} Bxd8 {[%emt 0:00:01]} 42. Bd4 {[%emt 0:01:13]} Kf8 {[%emt 0:02:11]} 43. Bc6 {[%emt 0:02:59]} Bc7 {[%emt 0:00:06]} 44. Be4 {[%emt 0:00:23]} g6 {[%emt 0:00:51]} 45. h4 {[%emt 0:00:20]} Kf7 {[%emt 0:00:17]} 46. Bd5+ {[%emt 0:00:11]} Ke7 {[%emt 0:00:11]} 47. h5 {[%emt 0:02:34]} Kf8 {[%emt 0:02:07]} 48. Kh3 {[%emt 0:00:54]} 1-0

[Event "Israel-ch Semi-final 2022"]
[Site "Ramat Gan"]
[Date "2022.07.11"]
[Round "9.1"]
[White "Aharonovich, Itamar"]
[Black "Solomon, Asif"]
[Result "1/2-1/2"]
[ECO "E54"]
[WhiteElo "2324"]
[BlackElo "2288"]
[Annotator "ChessBase"]
[PlyCount "60"]
[EventDate "2022.05.09"]
[EventType "swiss"]
[EventCountry "ISR"]
[SourceTitle "playchess.com"]
[Source "ChessBase"]
[SourceQuality "1"]
[TimeControl "40/5400+30:1800+30"]

1. d4 {[%emt 0:00:02]} Nf6 {[%emt 0:00:24]} 2. c4 {[%emt 0:00:10]} e6 {[%emt 0:00:04]} 3. Nc3 {[%emt 0:00:11]} Bb4 {[%emt 0:00:08]} 4. e3 {[%emt 0:00:08]} O-O {[%emt 0:00:25]} 5. Bd3 {[%emt 0:00:07]} d5 {[%emt 0:00:50]} 6. Nf3 {[%emt 0:00:23]} c5 {[%emt 0:00:12]} 7. O-O {[%emt 0:00:12]} cxd4 {[%emt 0:00:03]} 8. exd4 {[%emt 0:00:08]} dxc4 {[%emt 0:00:06]} 9. Bxc4 {[%emt 0:00:12]} b6 {[%emt 0:00:04]} 10. Bg5 {[%emt 0:00:20]} Bb7 {[%emt 0:01:22]} 11. Qe2 {[%emt 0:00:06]} Nbd7 {[%emt 0:18:00]} 12. Ne5 {[%emt 0:00:23]} Rc8 {[%emt 0:12:50]} 13. Rac1 {[%emt 0:06:26]} Nxe5 {[%emt 0:11:04]} 14. dxe5 {[%emt 0:01:59]} Qd4 {[%emt 0:01:12]} 15. exf6 {[%emt 0:16:55]} Qxc4 {[%emt 0:05:48]} 16. fxg7 {[%emt 0:02:31]} Rfe8 {[%emt 0:00:43]} 17. Bf6 {[%emt 0:15:16]} Qxe2 {[%emt 0:16:49]} 18. Nxe2 {[%emt 0:00:06]} Ba6 {[%emt 0:00:04]} 19. Rxc8 {[%emt 0:00:26]} Rxc8 {[%emt 0:00:07]} 20. Rc1 {[%emt 0:00:03]} Rxc1+ {[%emt 0:02:00]} 21. Nxc1 {[%emt 0:00:08]} Bc4 {[%emt 0:04:57]} 22. Nb3 {[%emt 0:10:08]} Bxb3 {[%emt 0:01:28]} 23. axb3 {[%emt 0:00:06]} Bd2 {[%emt 0:00:06]} 24. g4 {[%emt 0:06:59]} Bh6 {[%emt 0:12:03]} 25. Kg2 {[%emt 0:01:14]} Bxg7 {[%emt 0:00:52]} 26. Bxg7 {[%emt 0:07:22]} Kxg7 {[%emt 0:00:04]} 27. f4 {[%emt 0:00:15]} h6 {[%emt 0:10:51]} 28. Kf3 {[%emt 0:00:48]} f5 {[%emt 0:00:11]} 29. gxf5 {[%emt 0:05:51]} exf5 {[%emt 0:00:02]} 30. Ke3 {[%emt 0:00:20]} Kf6 {[%emt 0:00:13]} 1/2-1/2

[Event "Israel-ch Semi-final 2022"]
[Site "Ramat Gan"]
[Date "2022.07.11"]
[Round "9.2"]
[White "Yaniv, Ori"]
[Black "Poleg, Matan"]
[Result "0-1"]
[ECO "B47"]
[WhiteElo "2143"]
[BlackElo "2225"]
[Annotator "ChessBase"]
[PlyCount "110"]
[EventDate "2022.05.09"]
[EventType "swiss"]
[EventCountry "ISR"]
[SourceTitle "playchess.com"]
[Source "ChessBase"]
[SourceQuality "1"]
[TimeControl "40/5400+30:1800+30"]

1. e4 {[%emt 0:00:03]} c5 {[%emt 0:02:20]} 2. Nf3 {[%emt 0:00:06]} e6 {[%emt 0:00:14]} 3. d4 {[%emt 0:00:07]} cxd4 {[%emt 0:00:16]} 4. Nxd4 {[%emt 0:00:07]} Nc6 {[%emt 0:00:10]} 5. Nc3 {[%emt 0:00:05]} Qc7 {[%emt 0:00:08]} 6. Qd3 {[%emt 0:00:29]} Nf6 {[%emt 0:01:41]} 7. Ndb5 {[%emt 0:06:58]} Qb8 {[%emt 0:00:10]} 8. Qg3 {[%emt 0:00:06]} d6 {[%emt 0:00:10]} 9. Be3 {[%emt 0:05:56]} a6 {[%emt 0:01:25]} 10. Nd4 {[%emt 0:06:17]} Bd7 {[%emt 0:03:26]} 11. f4 {[%emt 0:17:10]} b5 {[%emt 0:04:00]} 12. Bd3 {[%emt 0:01:04]} b4 {[%emt 0:15:43]} 13. Nce2 {[%emt 0:00:18]} d5 {[%emt 0:02:11]} 14. e5 {[%emt 0:01:11]} Ne4 {[%emt 0:01:24]} 15. Bxe4 {[%emt 0:00:11]} dxe4 {[%emt 0:00:04]} 16. Nxc6 {[%emt 0:06:40]} Bxc6 {[%emt 0:00:06]} 17. Nd4 {[%emt 0:02:32]} Bd7 {[%emt 0:04:15]} 18. O-O {[%emt 0:08:10]} g6 {[%emt 0:00:24]} 19. Rad1 {[%emt 0:03:10]} Qb7 {[%emt 0:02:24]} 20. Rf2 {[%emt 0:03:41]} Be7 {[%emt 0:07:13]} 21. Rfd2 {[%emt 0:00:32]} Ba4 {[%emt 0:01:26]} 22. Nb3 {[%emt 0:15:27]} Rc8 {[%emt 0:02:22]} 23. Qf2 {[%emt 0:00:34]} Bxb3 {[%emt 0:00:38]} 24. axb3 {[%emt 0:05:13]} O-O {[%emt 0:00:16]} 25. Qe2 {[%emt 0:06:33]} Rc7 {[%emt 0:04:40]} 26. Ra1 {[%emt 0:01:39]} Ra8 {[%emt 0:01:27]} 27. Rd4 {[%emt 0:01:50]} Rac8 {[%emt 0:06:32]} 28. Rc4 {[%emt 0:02:05]} Qb5 {[%emt 0:03:06]} 29. Kf1 {[%emt 0:04:41]} Rxc4 {[%emt 0:01:00]} 30. bxc4 {[%emt 0:00:02]} Rxc4 {[%emt 0:01:00]} 31. b3 {[%emt 0:02:28]} Rxc2 {[%emt 0:00:08]} 32. Qxb5 {[%emt 0:00:01]} axb5 {[%emt 0:00:10]} 33. Ra7 {[%emt 0:00:12]} Rc3 {[%emt 0:04:02]} 34. Bd4 {[%emt 0:01:08]} Rd3 {[%emt 0:00:02]} 35. Bb6 {[%emt 0:00:25]} Kf8 {[%emt 0:03:01]} 36. Ra8+ {[%emt 0:00:11]} Kg7 {[%emt 0:00:01]} 37. Re8 {[%emt 0:00:15]} Rd7 {[%emt 0:01:01]} 38. Ke2 {[%emt 0:00:26]} f5 {[%emt 0:02:47]} 39. exf6+ {[%emt 0:00:02]} Kxf6 {[%emt 0:00:20]} 40. Ke3 {[%emt 0:00:54]} Kf5 {[%emt 0:03:03]} 41. Bd4 {[%emt 0:31:25]} g5 {[%emt 0:32:40]} 42. g4+ {[%emt 0:00:00]} Kxg4 {[%emt 0:00:00]} 43. Kxe4 {[%emt 0:00:00]} gxf4 {[%emt 0:00:00]} 44. Be5 {[%emt 0:00:00]} Bg5 {[%emt 0:00:00]} 45. Rxe6 {[%emt 0:00:00]} Rf7 {[%emt 0:00:00]} 46. h3+ {[%emt 0:00:00]} Kxh3 {[%emt 0:00:00]} 47. Kf3 {[%emt 0:00:00]} Rd7 {[%emt 0:00:00]} 48. Bd6 {[%emt 0:00:00]} Kh4 {[%emt 0:00:00]} 49. Re1 {[%emt 0:00:00]} Kh5 {[%emt 0:00:00]} 50. Re6 {[%emt 0:00:00]} h6 {[%emt 0:00:00]} 51. Bxf4 {[%emt 0:00:00]} Rf7 {[%emt 0:00:00]} 52. Re4 {[%emt 0:00:00]} Rxf4+ {[%emt 0:00:00]} 53. Rxf4 {[%emt 0:00:00]} Bxf4 {[%emt 0:00:00]} 54. Kxf4 {[%emt 0:00:00]} Kh4 {[%emt 0:00:00]} 55. Kf3 {[%emt 0:00:03]} Kg5 {[%emt 0:00:00]} 0-1

[Event "Israel-ch Semi-final 2022"]
[Site "Ramat Gan"]
[Date "2022.07.11"]
[Round "9.3"]
[White "Sivan, Yaacov"]
[Black "Uritsky, Yonathan"]
[Result "0-1"]
[ECO "A36"]
[WhiteElo "2306"]
[BlackElo "2072"]
[Annotator "ChessBase"]
[PlyCount "148"]
[EventDate "2022.05.09"]
[EventType "swiss"]
[EventCountry "ISR"]
[SourceTitle "playchess.com"]
[Source "ChessBase"]
[SourceQuality "1"]
[TimeControl "40/5400+30:1800+30"]

1. c4 {[%emt 0:02:50]} Nf6 {[%emt 0:01:06]} 2. g3 {[%emt 0:00:23]} g6 {[%emt 0:00:38]} 3. Bg2 {[%emt 0:00:19]} c5 {[%emt 0:01:14]} 4. Nc3 {[%emt 0:01:07]} Bg7 {[%emt 0:00:35]} 5. a3 {[%emt 0:02:56]} O-O {[%emt 0:03:55]} 6. e3 {[%emt 0:08:02]} d6 {[%emt 0:07:16]} 7. Nge2 {[%emt 0:03:32]} Nc6 {[%emt 0:01:32]} 8. O-O {[%emt 0:02:50]} Bd7 {[%emt 0:01:25]} 9. Rb1 {[%emt 0:03:35]} Qc8 {[%emt 0:05:04]} 10. Nf4 {[%emt 0:04:06]} Re8 {[%emt 0:09:09]} 11. b4 {[%emt 0:07:01]} g5 {[%emt 0:05:50]} 12. Nfd5 {[%emt 0:04:08]} Ne5 {[%emt 0:03:33]} 13. Nxf6+ {[%emt 0:05:02]} Bxf6 {[%emt 0:00:02]} 14. bxc5 {[%emt 0:01:04]} Bg4 {[%emt 0:03:01]} 15. f3 {[%emt 0:03:44]} Bf5 {[%emt 0:02:48]} 16. e4 {[%emt 0:05:40]} Be6 {[%emt 0:04:26]} 17. Nd5 {[%emt 0:02:41]} Bxd5 {[%emt 0:01:37]} 18. cxd5 {[%emt 0:03:04]} Nd3 {[%emt 0:00:01]} 19. c6 {[%emt 0:06:32]} bxc6 {[%emt 0:00:53]} 20. Qe2 {[%emt 0:02:29]} Nxc1 {[%emt 0:00:13]} 21. Rbxc1 {[%emt 0:01:11]} c5 {[%emt 0:00:13]} 22. f4 {[%emt 0:00:35]} gxf4 {[%emt 0:02:24]} 23. Rxf4 {[%emt 0:00:27]} Kh8 {[%emt 0:01:58]} 24. Qh5 {[%emt 0:04:21]} Rg8 {[%emt 0:00:01]} 25. Qxf7 {[%emt 0:01:17]} Rg7 {[%emt 0:00:02]} 26. Qh5 {[%emt 0:01:00]} Qb7 {[%emt 0:01:28]} 27. Qd1 {[%emt 0:05:55]} Rb8 {[%emt 0:01:27]} 28. Kh1 {[%emt 0:02:45]} Qb2 {[%emt 0:02:09]} 29. Rf3 {[%emt 0:02:10]} Rgg8 {[%emt 0:02:18]} 30. Bf1 {[%emt 0:02:54]} Rgf8 {[%emt 0:00:47]} 31. Rc2 {[%emt 0:04:55]} Qd4 {[%emt 0:02:09]} 32. Rc4 {[%emt 0:00:09]} Qb2 {[%emt 0:00:51]} 33. Rc2 {[%emt 0:00:07]} Qb1 {[%emt 0:01:34]} 34. Qxb1 {[%emt 0:01:12]} Rxb1 {[%emt 0:00:01]} 35. e5 {[%emt 0:03:16]} Bg7 {[%emt 0:00:34]} 36. Rxf8+ {[%emt 0:00:40]} Bxf8 {[%emt 0:00:01]} 37. Kg2 {[%emt 0:00:11]} Bg7 {[%emt 0:00:06]} 38. exd6 {[%emt 0:01:33]} exd6 {[%emt 0:00:02]} 39. a4 {[%emt 0:03:33]} Bd4 {[%emt 0:01:24]} 40. Bb5 {[%emt 0:00:35]} Kg7 {[%emt 0:00:56]} 41. Kf3 {[%emt 0:04:23]} Kf6 {[%emt 0:00:47]} 42. Bd7 {[%emt 0:04:08]} Ke5 {[%emt 0:01:21]} 43. Be6 {[%emt 0:00:57]} Ra1 {[%emt 0:00:47]} 44. Kg4 {[%emt 0:05:22]} Rxa4 {[%emt 0:04:00]} 45. Kh5 {[%emt 0:03:06]} Ra1 {[%emt 0:01:18]} 46. d3 {[%emt 0:00:07]} Be3 {[%emt 0:02:09]} 47. Rc4 {[%emt 0:00:15]} Bd4 {[%emt 0:00:25]} 48. Rc2 {[%emt 0:00:10]} Be3 {[%emt 0:01:44]} 49. Rc4 {[%emt 0:00:40]} Bd4 {[%emt 0:00:16]} 50. h4 {[%emt 0:01:25]} a5 {[%emt 0:01:55]} 51. Bd7 {[%emt 0:00:11]} Kxd5 {[%emt 0:02:38]} 52. g4 {[%emt 0:04:44]} Ke5 {[%emt 0:01:49]} 53. Kh6 {[%emt 0:00:54]} d5 {[%emt 0:03:13]} 54. Rc2 {[%emt 0:00:25]} Kd6 {[%emt 0:00:53]} 55. Bf5 {[%emt 0:05:36]} a4 {[%emt 0:00:01]} 56. Re2 {[%emt 0:00:32]} Be5 {[%emt 0:03:40]} 57. h5 {[%emt 0:00:22]} a3 {[%emt 0:00:59]} 58. Kxh7 {[%emt 0:01:28]} Rb1 {[%emt 0:01:18]} 59. d4 {[%emt 0:01:58]} Rb7+ {[%emt 0:00:06]} 60. Kg6 {[%emt 0:00:31]} cxd4 {[%emt 0:00:29]} 61. h6 {[%emt 0:01:19]} Ra7 {[%emt 0:04:23]} 62. h7 {[%emt 0:00:52]} Ra8 {[%emt 0:01:32]} 63. Bb1 {[%emt 0:01:35]} Rb8 {[%emt 0:01:21]} 64. g5 {[%emt 0:00:38]} Bh8 {[%emt 0:00:06]} 65. Bd3 {[%emt 0:00:54]} Kc5 {[%emt 0:03:50]} 66. Kf7 {[%emt 0:00:29]} Kb4 {[%emt 0:00:52]} 67. Ra2 {[%emt 0:00:29]} Ra8 {[%emt 0:04:04]} 68. g6 {[%emt 0:00:16]} Kc3 {[%emt 0:01:57]} 69. Bb1 {[%emt 0:00:50]} d3 {[%emt 0:00:20]} 70. Rg2 {[%emt 0:00:13]} d2 {[%emt 0:00:52]} 71. Rg1 {[%emt 0:00:19]} a2 {[%emt 0:01:00]} 72. g7 {[%emt 0:00:53]} Ra7+ {[%emt 0:01:31]} 73. Kg8 {[%emt 0:00:33]} Rxg7+ {[%emt 0:00:31]} 74. Rxg7 {[%emt 0:00:10]} Bxg7 {[%emt 0:00:02]} 0-1